bitfinex/quotes_ETHUSD_20240608
["timestamp","ask_amount","ask_price","bid_price","bid_amount"]
[1717854775049,2.71325,3685.7,3685.3,0.723]
[1717854775232,2.71325,3685.7,3685.5,0.92487676]
[1717854775434,2.71325,3685.7,3685.5,0.723]
[1717854775629,2.71325,3685.7,3685.6,0.20187253]
[1717854779938,2.71325,3685.7,3685.3,0.723]
[1717854780253,2.71325,3685.7,3685.4,0.20168109]
[1717854780455,2.71325,3685.7,3685.3,0.723]
[1717854780787,2.71325,3685.7,3685.5,0.20167686]
[1717854780934,2.71325,3685.7,3685.4,0.20168109]
[1717854781286,2.71325,3685.7,3685.5,0.20167686]
[1717854781493,2.71325,3685.7,3685.3,0.723]
[1717854781693,2.71325,3685.7,3685.6,0.20167263]
[1717854781844,2.71325,3685.7,3685.3,0.723]
[1717854782048,2.71325,3685.7,3685.6,0.20167263]
[1717854782276,2.71325,3685.7,3685.3,0.723]
[1717854782486,2.71325,3685.7,3685.6,0.20167263]
[1717854782786,2.71325,3685.7,3685.3,0.723]
[1717854783283,2.71325,3685.7,3685.4,0.20168109]
[1717854783436,2.71325,3685.7,3685.0,1.39285466]
[1717854783635,2.71325,3685.7,3685.5,0.20167686]
[1717854783838,2.71325,3685.7,3685.3,0.723]
[1717854784084,2.71325,3685.7,3685.6,0.20167263]
[1717854784285,2.71325,3685.7,3685.3,0.723]
[1717854784445,2.71325,3685.7,3685.6,0.20167263]
[1717854784786,2.71325,3685.7,3685.3,0.723]
[1717854784943,2.71325,3685.7,3685.6,0.20167263]
[1717854785142,2.71325,3685.7,3685.3,0.723]
[1717854785386,2.71325,3685.7,3685.6,0.20167263]
[1717854785857,2.71325,3685.7,3685.3,0.723]
[1717854786059,2.71325,3685.7,3685.6,0.20167263]
[1717854786284,2.71325,3685.7,3685.3,0.723]
[1717854786485,2.71325,3685.7,3685.6,0.20167263]
[1717854786643,2.71325,3685.7,3685.3,0.723]
[1717854786843,2.71325,3685.7,3685.6,0.20167263]
[1717854787044,2.71325,3685.7,3685.3,0.723]
[1717854787373,2.71325,3685.7,3685.6,0.20167263]
[1717854787547,2.71325,3685.7,3685.3,0.723]
[1717854788091,2.71325,3685.7,3685.4,0.20168109]
[1717854788250,2.71325,3685.7,3685.3,0.723]
[1717854788449,2.71325,3685.7,3685.5,0.20167686]
[1717854788678,2.71325,3685.7,3685.3,0.723]
[1717854788993,2.71325,3685.7,3685.6,0.20158126]
[1717854789205,2.71325,3685.7,3685.5,0.723]
[1717854789543,2.71325,3685.7,3685.6,0.20158126]
[1717854790560,2.71325,3685.7,3685.3,0.723]
[1717854791099,2.71325,3685.7,3685.4,0.20155546]
[1717854791605,2.71325,3685.7,3685.5,0.723]
[1717854791789,2.71325,3685.7,3685.5,0.92455123]
[1717854795695,2.71325,3685.7,3685.5,0.20155123]
[1717854796005,2.71325,3685.7,3685.4,0.723]
[1717854796171,2.71325,3685.7,3685.6,0.20131288]
[1717854796491,2.71325,3685.7,3685.4,0.723]
[1717854796749,2.71325,3685.7,3685.6,0.20131288]
[1717854796897,2.71325,3685.7,3685.5,0.20131711]
[1717854797096,2.71325,3685.7,3685.3,0.723]
[1717854797395,2.71325,3685.7,3685.6,0.20131288]
[1717854797990,2.71325,3685.7,3685.3,0.723]
[1717854798202,2.71325,3685.7,3685.6,0.20131288]
[1717854798499,2.71325,3685.7,3685.3,0.723]
[1717854798714,2.71325,3685.7,3685.6,0.20131288]
[1717854798902,2.71325,3685.7,3685.3,0.723]
[1717854799104,2.71325,3685.7,3685.6,0.20131288]
[1717854799260,2.71325,3685.7,3685.3,0.723]
[1717854799461,2.71325,3685.7,3685.6,0.20131288]
[1717854799758,2.71325,3685.7,3685.3,0.723]
[1717854800099,2.71325,3685.7,3685.4,0.20132134]
[1717854800266,2.71325,3685.7,3685.3,0.723]
[1717854800465,2.71325,3685.7,3685.5,0.20131711]
[1717854800808,2.71325,3685.7,3685.3,0.723]
[1717854801011,2.71325,3685.7,3685.6,0.20131288]
[1717854801307,2.71325,3685.7,3685.4,0.20132134]
[1717854801505,2.71325,3685.7,3685.0,1.39285466]
[1717854801815,2.71325,3685.7,3685.5,0.20131711]
[1717854802007,2.71325,3685.7,3685.3,0.723]
[1717854802396,2.71325,3685.7,3685.4,0.20132134]
[1717854802583,3.29981171,3685.7,3685.4,0.20132134]
[1717854802992,2.71325,3685.7,3685.3,0.723]
[1717854803193,2.71325,3685.7,3685.5,0.20137994]
[1717854803394,2.71325,3685.7,3685.4,0.20138417]
[1717854803568,2.71325,3685.7,3685.6,0.20137571]
[1717854803768,2.71325,3685.7,3685.5,0.20149985]
[1717854804071,2.71325,3685.7,3685.6,0.20149562]
[1717854804270,2.71325,3685.7,3685.4,0.723]
[1717854804584,2.71325,3685.7,3685.6,0.20149562]
[1717854804773,2.71325,3685.7,3685.5,0.20149985]
[1717854805102,2.71325,3685.7,3685.6,0.20149562]
[1717854805270,3.26325,3685.7,3685.4,0.723]
[1717854805472,3.26325,3685.7,3685.6,0.20149562]
[1717854805670,3.26325,3685.7,3685.4,0.723]
[1717854805870,3.26325,3685.7,3685.5,0.20149985]
[1717854806696,3.26325,3685.7,3685.2,0.723]
[1717854806871,3.26325,3685.7,3685.6,0.20149562]
[1717854807085,3.26325,3685.7,3685.2,0.723]
[1717854807407,3.26325,3685.7,3685.3,0.20150831]
[1717854807408,2.71335,3685.5,3685.3,0.20150831]
[1717854807768,2.71335,3685.5,3685.2,0.723]
[1717854807980,2.71335,3685.5,3685.4,0.20150408]
[1717854808197,2.71335,3685.5,3685.3,0.20150831]
[1717854808509,2.71335,3685.5,3685.4,0.20150408]
[1717854808709,2.71335,3685.5,3685.2,1.19756501]
[1717854808895,2.71335,3685.5,3685.3,0.20150831]
[1717854809098,2.71335,3685.5,3685.2,1.19756501]
[1717854809268,2.71335,3685.5,3685.4,0.723]
[1717854809471,2.71335,3685.5,3685.4,0.92453834]
[1717854810070,2.71335,3685.5,3685.4,0.20153834]
[1717854810272,2.71335,3685.5,3685.2,0.723]
[1717854810608,2.71335,3685.5,3685.3,0.20151973]
[1717854811013,2.71335,3685.5,3685.2,0.723]
[1717854811314,2.71335,3685.5,3685.3,0.20151973]
[1717854811502,2.71335,3685.5,3685.2,0.723]
[1717854811703,2.71335,3685.5,3685.4,0.2015155]
[1717854812015,3.26335,3685.5,3685.2,0.723]
[1717854812393,3.26335,3685.5,3685.3,0.20151973]
[1717854812905,3.26335,3685.5,3685.2,0.723]
[1717854813119,3.26335,3685.5,3685.4,0.20150406]
[1717854813330,3.26335,3685.5,3685.2,0.723]
[1717854813670,3.26335,3685.5,3685.3,0.20150829]
[1717854813871,3.26335,3685.5,3685.2,0.723]
[1717854814097,3.26335,3685.5,3685.3,0.20150829]
[1717854814284,3.26335,3685.5,3685.2,0.723]
[1717854814467,3.26335,3685.5,3685.3,0.20150829]
[1717854814710,3.26335,3685.5,3685.2,0.723]
[1717854814873,3.26335,3685.5,3685.3,0.20150829]
[1717854815216,3.26335,3685.5,3685.2,0.723]
[1717854815588,3.26335,3685.5,3685.3,0.20150829]
[1717854815975,3.26335,3685.5,3685.2,0.723]
[1717854816515,3.26335,3685.5,3685.3,0.20150829]
[1717854816688,3.26335,3685.5,3685.2,0.723]
[1717854816888,3.26335,3685.5,3685.3,0.20150829]
[1717854817088,3.26335,3685.5,3685.2,0.723]
[1717854817301,3.26335,3685.5,3685.3,0.20150829]
[1717854817614,3.26335,3685.5,3685.2,0.723]
[1717854817823,3.26335,3685.5,3685.4,0.723]
[1717854818026,2.71335,3685.5,3685.4,0.723]
[1717854818229,2.71335,3685.5,3685.4,3.1464]
[1717854818521,2.71335,3685.5,3685.4,3.34789264]
[1717854818692,2.71335,3685.5,3685.4,0.92449264]
[1717854819101,2.71304,3685.9,3685.4,1.2592819]
[1717854819330,0.55,3685.8,3685.4,0.5362819]
[1717854819509,3.29929171,3686.4,3685.8,0.723]
[1717854819812,3.29923162,3686.4,3686.1,0.723]
[1717854819979,2.71273,3686.4,3686.1,0.723]
[1717854820176,2.71273,3686.4,3686.2,0.20125897]
[1717854820714,2.71273,3686.4,3686.3,0.723]
[1717854820923,3.26273,3686.4,3686.3,0.92425474]
[1717854822202,3.26273,3686.4,3686.3,0.723]
[1717854822513,3.26273,3686.4,3686.1,0.723]
[1717854822817,0.55,3686.3,3686.2,0.20125897]
[1717854830445,0.55,3686.3,3686.2,2.54035897]
[1717854830939,0.1242478,3686.6,3686.2,2.54035897]
[1717854831102,0.55,3686.5,3686.2,2.54035897]
[1717854831303,0.55,3686.5,3686.3,0.723]
[1717854831503,0.55,3686.5,3686.4,0.20057687]
[1717854832659,0.1242478,3686.6,3686.4,0.20057687]
[1717854832950,0.1242478,3686.6,3686.4,0.52684456]
[1717854839394,0.55,3686.5,3686.4,0.20057687]
[1717854839876,0.58282063,3686.5,3685.6,2.71324]
[1717854840016,0.55,3686.5,3686.4,0.20018879]
[1717854840220,0.55,3686.5,3685.8,0.723]
[1717854840443,0.55,3686.5,3686.0,0.723]
[1717854840662,0.55,3686.5,3685.9,0.20020994]
[1717854840851,0.55,3686.5,3686.1,0.20020148]
[1717854841032,0.55,3686.5,3686.0,0.92320571]
[1717854841366,0.55,3686.5,3686.1,0.20020148]
[1717854841574,2.2595,3686.3,3686.1,0.20020148]
[1717854841726,0.55,3686.2,3686.1,0.20020148]
[1717854841944,0.55,3686.2,3685.8,0.723]
[1717854842146,0.55,3686.2,3685.9,0.20020994]
[1717854843565,0.58282063,3686.2,3685.9,0.20020994]
[1717854843759,0.58282063,3686.2,3685.5,0.723]
[1717854843965,0.58282063,3686.2,3685.6,0.20022262]
[1717854844486,0.58282063,3686.2,3685.5,0.723]
[1717854844695,2.71292,3686.1,3685.7,0.20021839]
[1717854844878,0.55,3686.0,3685.6,0.20022262]
[1717854845050,0.55,3686.0,3685.8,0.20021417]
[1717854845250,0.55,3686.0,3685.7,0.20021839]
[1717854845450,0.55,3686.0,3685.8,0.20021417]
[1717854845873,2.2595,3685.9,3685.3,0.723]
[1717854846086,0.55,3685.8,3685.3,0.723]
[1717854846262,0.55,3685.8,3685.4,0.20062494]
[1717854846676,0.55,3685.8,3685.3,0.723]
[1717854846885,0.55,3685.8,3685.5,0.20062071]
[1717854847099,0.55,3685.8,3685.6,0.20061648]
[1717854847480,0.55,3685.8,3685.3,0.723]
[1717854848010,0.55,3685.8,3685.4,0.20062494]
[1717854848306,0.55,3685.8,3685.3,0.723]
[1717854848465,0.55,3685.8,3685.4,0.20062494]
[1717854848661,4.97269,3685.7,3684.4,2.3495]
[1717854848862,0.55,3685.6,3685.0,0.723]
[1717854849204,0.55,3685.6,3685.1,0.20108852]
[1717854849373,2.71334,3685.5,3685.1,0.20108852]
[1717854849576,0.55,3685.4,3685.1,0.20108852]
[1717854849787,0.55,3685.4,3684.8,0.723]
[1717854850111,0.55,3685.4,3685.2,0.20108429]
[1717854850406,0.55,3685.4,3685.3,0.20108006]
[1717854850770,0.55,3685.4,3685.0,0.723]
[1717854850965,0.55,3685.4,3685.3,0.20108006]
[1717854851171,0.55,3685.4,3685.0,0.723]
[1717854851385,0.55,3685.4,3685.3,0.20109719]
[1717854851590,0.55,3685.4,3685.0,0.723]
[1717854851786,0.55,3685.4,3685.3,0.20109719]
[1717854851986,0.55,3685.4,3685.0,0.723]
[1717854852186,0.55,3685.4,3685.3,0.20130845]
[1717854852398,0.55,3685.4,3685.0,0.723]
[1717854852876,0.55,3685.4,3685.1,0.20131691]
[1717854853077,0.55,3685.4,3685.2,0.723]
[1717854853516,0.55,3685.4,3685.3,0.20130845]
[1717854853710,0.55,3685.4,3685.2,0.723]
[1717854853900,0.55,3685.4,3685.3,0.20130845]
[1717854854217,0.55,3685.4,3685.2,0.723]
[1717854854425,5.20791,3686.0,3685.3,0.20130845]
[1717854854734,5.20791,3686.0,3685.4,0.723]
[1717854855037,5.20791,3686.0,3685.2,0.723]
[1717854855393,5.20791,3686.0,3685.3,0.20124564]
[1717854855922,5.20791,3686.0,3685.4,0.20124141]
[1717854856225,0.55,3685.9,3685.2,0.723]
[1717854856389,0.55,3685.9,3685.4,0.723]
[1717854857950,0.55,3685.9,3685.4,2.9949]
[1717854862966,0.55,3685.9,3685.3,0.723]
[1717854863184,0.55,3685.9,3685.4,0.20124141]
[1717854863524,0.55,3685.9,3685.3,0.723]
[1717854863721,0.55,3685.9,3685.4,0.20124141]
[1717854863968,0.55,3685.9,3685.3,0.723]
[1717854864271,0.55,3685.9,3685.4,0.20124141]
[1717854864636,0.55,3685.9,3685.3,0.723]
[1717854864835,0.55,3685.9,3685.5,0.20126004]
[1717854865252,0.55,3685.9,3685.3,0.723]
[1717854865788,0.55,3685.9,3685.4,0.20126427]
[1717854866130,0.55,3685.9,3685.3,0.723]
[1717854866333,0.55,3685.9,3685.4,0.20126427]
[1717854866588,0.55,3685.9,3685.3,0.723]
[1717854866589,2.4112,3685.8,3685.3,0.723]
[1717854866734,0.55,3685.7,3685.5,0.20126004]
[1717854866931,0.55,3685.7,3685.1,2.11585466]
[1717854867130,0.55,3685.7,3685.2,0.20118138]
[1717854870595,0.55,3685.7,3685.3,0.20117715]
[1717854870934,0.55,3685.7,3685.1,0.723]
[1717854871128,0.55,3685.7,3685.2,0.20118138]
[1717854873347,0.55,3685.7,3685.4,0.723]
[1717854873553,0.55,3685.7,3685.6,0.723]
[1717854874707,0.55,3685.9,3685.6,0.92425581]
[1717854876956,2.9612,3685.9,3685.6,0.92425581]
[1717854882485,1.117421,3685.9,3685.6,0.20125581]
[1717854882793,1.117421,3685.9,3685.5,0.723]
[1717854882966,1.117421,3685.9,3685.6,0.20108452]
[1717854883378,0.55,3685.9,3685.6,0.20108452]
[1717854883555,2.71311,3685.8,3685.6,0.20108452]
[1717854883750,2.8952,3685.7,3684.6,10.56048]
[1717854883995,2.8952,3685.7,3685.2,0.723]
[1717854884201,2.8952,3685.7,3685.3,0.20109721]
[1717854884516,3.51467924,3685.7,3685.3,0.20109721]
[1717854884657,3.51467924,3685.7,3685.2,0.723]
[1717854884857,3.51467924,3685.7,3685.4,0.20109298]
[1717854885059,3.51467924,3685.7,3685.3,0.20109721]
[1717854885255,3.51467924,3685.7,3685.2,0.723]
[1717854885490,3.51467924,3685.7,3685.4,0.20109298]
[1717854885796,0.57876752,3685.6,3684.7,1.39285466]
[1717854886005,0.55,3685.5,3685.2,0.723]
[1717854886361,0.55,3685.6,3685.3,0.20116001]
[1717854886755,0.55,3685.6,3685.4,0.20115578]
[1717854886951,0.55,3685.6,3685.2,0.723]
[1717854887166,0.55,3685.6,3685.3,0.20116001]
[1717854887367,0.55,3685.6,3685.2,0.723]
[1717854887637,0.55,3685.6,3685.3,0.20116001]
[1717854888125,0.55,3685.6,3685.2,0.723]
[1717854888332,0.55,3685.7,3685.4,0.92415578]
[1717854888535,0.55,3685.7,3685.4,0.723]
[1717854888823,0.55,3685.7,3685.5,0.20115155]
[1717854898928,0.55,3685.9,3685.5,0.20115155]
[1717854899631,0.55,3686.0,3685.5,0.20115155]
[1717854903509,1.46945078,3686.0,3685.4,0.723]
[1717854909733,2.71304,3685.9,3685.4,0.723]
[1717854910037,0.55,3685.8,3685.4,0.723]
[1717854910541,0.55,3685.8,3685.5,0.20122576]
[1717854912117,2.9668,3685.8,3685.5,0.20122576]
[1717854912489,2.9668,3685.8,3685.2,0.723]
[1717854912699,2.9668,3685.8,3685.2,2.11585466]
[1717854912888,2.9668,3685.8,3685.3,0.20124564]
[1717854913305,2.9668,3685.8,3685.2,0.723]
[1717854913612,2.9668,3685.8,3685.3,0.20124564]
[1717854913801,2.9668,3685.8,3685.2,0.723]
[1717854914316,2.9668,3685.8,3685.3,0.20124564]
[1717854914689,2.9668,3685.8,3685.2,0.723]
[1717854914891,2.9668,3685.8,3685.4,0.20124141]
[1717854915106,2.71322,3685.7,3685.3,0.20124564]
[1717854915291,2.71322,3685.7,3684.8,2.2789]
[1717854915292,0.55,3685.6,3685.5,0.20123718]
[1717854915681,0.55,3685.6,3685.1,0.723]
[1717854915895,0.55,3685.6,3685.5,0.20123718]
[1717854916101,0.55,3685.6,3685.1,0.723]
[1717854916327,0.55,3685.6,3685.5,0.20123718]
[1717854916776,0.55,3685.6,3685.1,0.723]
[1717854916975,0.55,3685.6,3685.2,0.20124987]
[1717854917878,2.4168,3685.4,3685.2,0.20124987]
[1717854918079,0.55,3685.3,3685.2,0.20124987]
[1717854918392,0.55,3685.3,3684.5,2.2789]
[1717854918605,0.55,3685.3,3684.8,0.723]
[1717854918812,0.55,3685.3,3684.9,0.20144529]
[1717854919122,3.26348,3685.3,3684.8,0.723]
[1717854919322,3.26348,3685.3,3685.0,0.20144106]
[1717854919473,3.26348,3685.3,3684.8,0.723]
[1717854919474,3.26348,3685.3,3684.9,0.20144529]
[1717854919925,3.26348,3685.3,3685.1,0.20143683]
[1717854920106,3.26348,3685.3,3685.0,0.20144106]
[1717854920440,3.26348,3685.3,3685.1,0.20143683]
[1717854927592,0.55,3685.3,3685.1,0.20143683]
[1717854927990,0.55,3685.2,3685.1,0.20143683]
[1717854928234,0.55,3685.5,3685.1,0.20143683]
[1717854930344,1.122629,3685.5,3685.1,0.20143683]
[1717854930542,1.122629,3685.5,3684.8,0.723]
[1717854930720,0.55,3685.5,3685.2,0.20175237]
[1717854930914,0.55,3685.5,3684.8,0.723]
[1717854931330,0.55,3685.5,3684.9,0.20173651]
[1717854935146,0.55,3685.5,3685.0,0.723]
[1717854935344,0.55,3685.5,3685.1,0.20179087]
[1717854937504,0.55,3685.6,3685.1,0.20179087]
[1717854941715,0.55,3685.6,3685.3,2.491]
[1717854941906,0.55,3685.6,3685.3,2.83257909]
[1717854942217,0.55,3685.6,3685.4,0.20177817]
[1717854942377,0.55,3685.6,3685.3,2.491]
[1717854942711,0.55,3685.6,3685.4,0.20172677]
[1717854943314,0.55,3685.6,3685.5,0.20172254]
[1717854943671,0.55,3685.6,3685.3,2.8124]
[1717854943913,0.55,3685.6,3685.5,0.20172254]
[1717854944116,0.55,3685.6,3685.4,0.20172677]
[1717854944298,0.55,3685.6,3685.5,0.20172254]
[1717854944480,0.55,3685.6,3685.3,2.491]
[1717854944676,0.55,3685.6,3685.5,0.20172254]
[1717854944881,0.55,3685.6,3685.4,0.20172677]
[1717854945214,0.55,3685.6,3685.3,2.491]
[1717854945424,0.55,3685.6,3685.4,0.20172677]
[1717854945721,0.55,3685.6,3685.3,2.491]
[1717854945918,0.55,3685.6,3685.5,0.20172254]
[1717854946590,0.55,3685.6,3685.3,2.491]
[1717854946913,0.55,3685.6,3685.4,0.20172677]
[1717854947113,0.55,3685.6,3685.3,2.491]
[1717854947377,0.55,3685.6,3685.5,0.20172254]
[1717854947530,0.55,3685.6,3685.4,0.20172677]
[1717854947826,0.55,3685.6,3685.5,0.20172254]
[1717854948825,0.55,3685.6,3685.3,2.491]
[1717854949001,0.55,3685.6,3685.4,0.20172677]
[1717854949391,0.55,3685.6,3685.5,0.20172254]
[1717854950084,0.55,3685.6,3685.3,2.491]
[1717854950286,0.55,3685.6,3685.5,0.20172254]
[1717854950512,0.55,3685.6,3685.4,0.20172677]
[1717854950707,0.55,3685.6,3685.5,0.20172254]
[1717854951129,0.55,3685.6,3685.3,2.491]
[1717854951431,0.55,3685.6,3685.5,0.20172254]
[1717854951729,0.55,3685.6,3685.3,2.491]
[1717854951907,0.55,3685.6,3685.5,0.20172254]
[1717854952104,0.55,3685.6,3685.4,0.92472677]
[1717854952347,0.55,3685.9,3685.5,0.20172254]
[1717854952533,0.55,3685.9,3685.4,0.723]
[1717854954746,0.55,3685.9,3685.3,2.491]
[1717854954931,0.55,3685.9,3685.4,0.723]
[1717854956211,0.55,3685.9,3685.3,2.491]
[1717854956413,0.55,3685.9,3685.4,0.92434991]
[1717854956636,0.55,3685.9,3685.4,0.723]
[1717854958438,0.55,3686.0,3685.4,0.723]
[1717854958667,2.01370866,3686.0,3685.3,2.491]
[1717854958821,2.01370866,3686.0,3685.4,0.723]
[1717854959249,2.01370866,3686.0,3685.2,0.723]
[1717854959437,2.01370866,3686.0,3685.3,0.2014455]
[1717854959740,1.01888087,3685.9,3685.3,0.2014455]
[1717854960062,0.55,3685.8,3685.4,0.723]
[1717854960377,0.55,3685.8,3685.5,0.20143704]
[1717854962778,0.55,3685.9,3685.5,0.20143704]
[1717854962937,0.55,3686.0,3685.5,0.20143704]
[1717854963269,0.87251,3685.9,3685.6,0.20139284]
[1717854963474,0.55,3685.8,3685.6,0.20139284]
[1717854963776,0.55,3685.8,3685.4,0.723]
[1717854964082,0.55,3685.8,3685.7,0.20138861]
[1717854964249,0.55,3685.8,3685.2,0.723]
[1717854964596,0.55,3685.8,3685.3,0.20140553]
[1717854965091,0.55,3685.8,3685.4,0.2014013]
[1717854965301,0.55,3685.8,3685.4,0.723]
[1717854965778,0.55,3685.8,3685.5,0.20139707]
[1717854966495,0.58651195,3686.0,3685.5,0.20139707]
[1717854966496,0.55,3685.9,3685.5,0.20139707]
[1717854967037,0.55,3686.0,3685.5,0.20139707]
[1717854967358,0.55,3686.0,3685.4,0.723]
[1717854968273,1.13647675,3686.0,3685.4,0.723]
[1717854968650,1.13647842,3686.0,3685.4,0.723]
[1717854968861,1.13647842,3686.0,3685.5,0.2012943]
[1717854969487,0.55,3686.0,3685.5,0.2012943]
[1717854970182,1.1364727,3686.0,3685.5,0.2012943]
[1717854971793,0.55,3686.0,3685.5,0.2012943]
[1717854971956,1.13646368,3686.0,3685.5,0.2012943]
[1717854972158,1.13646368,3686.0,3685.6,0.723]
[1717854972363,0.55,3686.0,3685.8,0.723]
[1717854972773,0.55,3686.3,3685.9,0.20118032]
[1717854973390,0.55,3686.3,3685.8,0.723]
[1717854974265,0.55,3686.3,3685.9,0.20117461]
[1717854974446,0.55,3686.3,3685.8,0.723]
[1717854974883,0.55,3686.3,3685.9,0.20117461]
[1717854980988,0.55,3686.3,3685.9,0.92417461]
[1717854984649,0.55,3686.3,3686.1,0.723]
[1717854985044,0.55,3686.5,3686.2,0.20092213]
[1717854985248,0.1242478,3686.6,3686.4,0.723]
[1717854985444,0.1242478,3686.6,3686.5,0.20072106]
[1717854986460,0.6742478,3686.6,3686.5,0.20072106]
[1717854986656,0.6742478,3686.6,3686.5,0.53730317]
[1717854986871,0.1242478,3686.6,3686.5,0.53730317]
[1717854987665,0.1242478,3686.6,3686.5,1.93015783]
[1717854988417,0.1242478,3686.6,3686.5,4.37225783]
[1717854989548,0.1242478,3686.6,3686.5,5.09525783]
[1717854990706,0.1242478,3686.6,3686.5,2.65315783]
[1717854991958,0.1242478,3686.6,3686.5,1.93015783]
[1717854992199,0.1242478,3686.6,3686.5,2.65315783]
[1717854992704,0.1242478,3686.6,3686.5,1.26030317]
[1717854992893,0.1242478,3686.6,3686.5,0.92372106]
[1717854998433,0.1242478,3686.6,3686.5,0.20072106]
[1717854998770,0.1242478,3686.6,3686.4,0.723]
[1717854998976,0.1242478,3686.6,3686.5,0.20018455]
[1717854999417,0.1242478,3686.6,3685.9,3.04219746]
[1717854999636,0.1242478,3686.6,3686.5,0.20013889]
[1717855000087,0.1242478,3686.6,3686.3,0.723]
[1717855000289,0.1242478,3686.6,3686.4,0.20014312]
[1717855001790,0.55,3686.5,3686.0,0.723]
[1717855003636,0.55,3686.5,3686.2,0.723]
[1717855004108,0.55,3686.5,3685.5,4.0]
[1717855004309,2.3696,3686.4,3685.6,2.86019766]
[1717855004522,0.55,3686.3,3686.1,0.723]
[1717855006124,2.4938478,3686.6,3686.1,0.723]
[1717855006434,0.55,3686.5,3686.2,0.723]
[1717855008811,0.55,3686.5,3685.8,2.4801]
[1717855009011,0.55,3686.5,3686.2,0.723]
[1717855010458,0.55,3686.5,3686.3,0.20034141]
[1717855010820,0.55,3686.5,3686.2,0.723]
[1717855011026,0.55,3686.5,3686.4,0.20033719]
[1717855011335,0.55,3686.5,3686.3,0.20034141]
[1717855011545,0.55,3686.5,3686.4,0.20033719]
[1717855012038,0.55,3686.5,3686.2,0.723]
[1717855012243,0.55,3686.5,3686.4,0.20045132]
[1717855012441,0.1242478,3686.6,3686.3,0.20045555]
[1717855012760,0.1242478,3686.6,3686.4,0.20045132]
[1717855019665,0.1242478,3686.6,3686.5,0.723]
[1717855019964,0.1242478,3686.6,3686.5,1.26373374]
[1717855021362,0.1242478,3686.6,3686.5,0.54073374]
[1717855021521,0.1242478,3686.6,3686.5,1.26373374]
[1717855022065,0.1242478,3686.6,3686.5,2.6565884]
[1717855023275,0.1242478,3686.6,3686.5,5.0759884]
[1717855025037,0.1242478,3686.6,3686.5,4.3529884]
[1717855025375,0.1242478,3686.6,3686.5,5.0759884]
[1717855036598,0.1242478,3686.6,3686.5,4.3529884]
[1717855036815,0.1242478,3686.6,3686.5,5.0759884]
[1717855038325,0.1242478,3686.6,3686.5,4.7989884]
[1717855041051,0.00954559,3688.8,3686.6,2.4092]
[1717855041252,0.00954559,3688.8,3687.6,2.71177]
[1717855041443,0.00954559,3688.8,3688.2,0.723]
[1717855041774,2.4569,3688.6,3688.3,0.19958352]
[1717855041930,0.51774256,3688.5,3688.3,0.19958352]
[1717855042133,0.51774256,3688.5,3687.9,0.723]
[1717855042359,0.51774256,3688.5,3688.0,0.19959619]
[1717855042667,2.71129,3688.3,3688.0,0.19959619]
[1717855042875,2.48972063,3688.2,3688.0,0.19959619]
[1717855043202,2.48972063,3688.2,3687.4,0.723]
[1717855043475,0.55,3688.1,3687.4,0.723]
[1717855043787,0.58282063,3688.1,3687.5,0.1918781]
[1717855043987,0.57510106,3688.0,3687.5,0.1918781]
[1717855044272,0.55,3687.9,3687.5,0.1918781]
[1717855044478,0.55,3687.9,3687.4,0.723]
[1717855044777,0.55,3687.9,3687.5,0.1918781]
[1717855045143,0.55,3687.9,3687.4,0.723]
[1717855045346,0.55,3687.9,3687.5,0.1918781]
[1717855045554,0.55,3687.9,3687.4,0.723]
[1717855045884,0.55,3687.9,3687.6,0.19187387]
[1717855046183,0.55,3687.9,3687.7,0.19186965]
[1717855046546,0.55,3687.9,3687.4,0.723]
[1717855046749,0.90820011,3687.9,3687.5,0.1918781]
[1717855046944,0.90820011,3687.9,3687.4,0.723]
[1717855047147,0.90820011,3687.9,3687.5,0.1918781]
[1717855047394,0.90820011,3687.9,3687.4,0.723]
[1717855047595,0.90820011,3687.9,3687.6,0.91487387]
[1717855047764,0.90820011,3687.9,3687.6,0.723]
[1717855047967,0.90820011,3687.9,3687.7,0.19186965]
[1717855048286,0.14833012,3687.8,3687.7,0.19186965]
[1717855048495,0.90820011,3687.9,3687.7,0.19186965]
[1717855048949,0.35820011,3687.9,3687.7,0.19186965]
[1717855049152,0.57510106,3688.0,3687.7,0.19186965]
[1717855050492,0.57510106,3688.0,3687.8,0.723]
[1717855050847,0.57510106,3688.0,3687.9,0.19194647]
[1717855051652,0.57510106,3688.0,3687.8,0.723]
[1717855051953,0.57510106,3688.0,3687.9,0.19174183]
[1717855052156,2.71129,3688.3,3687.9,0.19174183]
[1717855052479,3.0,3688.2,3687.9,0.19174183]
[1717855056823,3.0,3688.2,3687.9,1.58459649]
[1717855057010,2.4569,3688.5,3688.1,0.723]
[1717855057206,0.24569,3688.4,3688.1,0.723]
[1717855057387,3.24569,3688.4,3688.2,0.723]
[1717855057587,3.0,3688.3,3687.9,1.39285466]
[1717855057919,3.0,3688.3,3688.0,0.723]
[1717855058106,3.0,3688.6,3688.0,0.723]
[1717855058312,0.87635834,3688.5,3688.0,0.723]
[1717855060218,0.00954559,3688.8,3688.4,0.723]
[1717855062308,0.00954559,3688.8,3688.7,0.723]
[1717855063684,0.00954559,3688.8,3688.7,0.72153954]
[1717855064732,0.00954559,3688.8,3688.5,3.72835466]
[1717855064936,0.00954559,3688.8,3688.6,0.723]
[1717855066201,0.00954559,3688.8,3688.5,3.72835466]